Organisation Name,Organisation Code,Directorate/Service,Service Category Label,Service Code,Supplier Name,Supplier Reference,Payment Date,Transaction Number,Net Payments,Purpose of Spend
North West Leicestershire District Council,31UH,Environmental Health,Environmental Health & Licensing,EEHL,Eville And Jones Limited,A033670,04/08/2021,1413184,3792.35,Vet Inspection
North West Leicestershire District Council,31UH,Property Services,Property Commercial Lettings,PROPCL,Coalville Cleaning Services,A003037,04/08/2021,1413195,355.18,Contract Cleaning
North West Leicestershire District Council,31UH,Property Services,Property Commercial Lettings,PROPCL,Coalville Cleaning Services,A003037,04/08/2021,1413196,667.62,Contract Cleaning
North West Leicestershire District Council,31UH,Corporate Director,Human Resources,HR,East Midlands Councils,A008942,04/08/2021,1413238,505,Corporate Training
North West Leicestershire District Council,31UH,Leisure & Culture,Sport & Physical Activity,SPA,Leicestershire County Council,A000950,04/08/2021,1413239,8606,Contributions
North West Leicestershire District Council,31UH,Street Management,Environment - Street Scene,ESS,Sileby Fabrications Ltd,A044268,04/08/2021,1413241,683,Operational Equipment
North West Leicestershire District Council,31UH,Street Management,Environment - Street Scene,ESS,Cuckoo Gap Limited,A000438,04/08/2021,1413243,791,Routine Ground Maintenance Expenditure
North West Leicestershire District Council,31UH,Environment Directorate,Environment - Directorate Support,ENVDS,Cenex Consultancy Services Limited,A046775,04/08/2021,1413245,5387.5,Consultants Fees
North West Leicestershire District Council,31UH,Information Technology,ICT Services,ICT,Stone Computers Ltd,A023214,04/08/2021,1413246,499.75,Administrative Equipment
North West Leicestershire District Council,31UH,Leisure & Culture,Sport & Physical Activity,SPA,Leicestershire County Council,A000950,04/08/2021,1413247,11188,Sports Forum Contribution
North West Leicestershire District Council,31UH,Street Management,Environment Transport,ENOT,Coalville Cleaning Services,A003037,04/08/2021,1413254,1708.88,Contract Cleaning
North West Leicestershire District Council,31UH,Street Management,Environment - Street Scene,ESS,TMP Worldwide Ltd,A045319,04/08/2021,1413255,442.36,Colour Photocopying
North West Leicestershire District Council,31UH,Housing,HRA Housing Management,HRAHM,Aareon UK Ltd,A045197,04/08/2021,1413257,258.67,Contract Payments (Other) Ext
North West Leicestershire District Council,31UH,Housing,HRA Housing Management,HRAHM,Home Connections Lettings Ltd,A044386,04/08/2021,1413258,7350,Contract Payments (Other) Ext
North West Leicestershire District Council,31UH,Street Management,Environment Transport,ENOT,Riverside Truck Rental Ltd,A045702,04/08/2021,1413261,400,Hire Of Transport
North West Leicestershire District Council,31UH,Street Management,Environment Transport,ENOT,Selby's Garage (Woodhouse) Ltd,A044011,04/08/2021,1413262,330.82,Hire Of Operational Equipment
North West Leicestershire District Council,31UH,Street Management,Environment - Street Scene,ESS,Gilvar Lining Ltd,A040848,04/08/2021,1413264,520,Routine Ground Maintenance Expenditure
North West Leicestershire District Council,31UH,Leisure & Culture,Cultural Services Arts & Events,CULTEV,Fleckney Group Ltd,A046929,04/08/2021,1413266,11250,Event Expenditure
North West Leicestershire District Council,31UH,Planning & Development,Environment - Development Control,EDC,GHM Planning Limited,A034296,04/08/2021,1413267,3522.5,Agency Staff
North West Leicestershire District Council,31UH,Planning & Development,Environment - Development Control,EDC,TMP Worldwide Ltd,A045319,04/08/2021,1413268,401.28,Advertising
North West Leicestershire District Council,31UH,Planning & Development,Environment - Development Control,EDC,TMP Worldwide Ltd,A045319,04/08/2021,1413269,452.2,Advertising
North West Leicestershire District Council,31UH,Planning & Development,Environment - Development Control,EDC,TMP Worldwide Ltd,A045319,04/08/2021,1413281,544.74,Advertising
North West Leicestershire District Council,31UH,Planning & Development,Environment - Development Control,EDC,TMP Worldwide Ltd,A045319,04/08/2021,1413282,541.55,Advertising
North West Leicestershire District Council,31UH,Street Management,Environment Transport,ENOT,Westbury Industrial Supplies Limited,A009933,04/08/2021,1413342,743.06,Operational Purchases
North West Leicestershire District Council,31UH,Information Technology,ICT Services,ICT,Premier Paper Group,A042438,04/08/2021,1413346,665.71,Consumable Materials
North West Leicestershire District Council,31UH,Housing,HRA Older Persons Service,HRAOPS,Tunstall Healthcare (UK) Limited,A001701,04/08/2021,1412350,900,Alarm System Telephones
North West Leicestershire District Council,31UH,Property Services,Property Facilities Management,PROPFM,exi,A045557,04/08/2021,1412827,1250,Consultants Fees
North West Leicestershire District Council,31UH,Information Technology,ICT Services,ICT,House on the Hill Software Ltd,A042199,04/08/2021,1413173,850,Administrative Equipment
North West Leicestershire District Council,31UH,Street Management,Environment Parks,ENOP,Bell Decorating Group Limited,A044051,04/08/2021,1413199,2823,Routine Ground Maintenance Expenditure
North West Leicestershire District Council,31UH,Street Management,Environment Parks,ENOP,Vitax Limited,A031093,04/08/2021,1413259,264,Operational Purchases
North West Leicestershire District Council,31UH,Information Technology,ICT Services,ICT,QA Ltd,A034064,04/08/2021,1413263,2796.8,Training Expenses
North West Leicestershire District Council,31UH,Street Management,Environment - Street Scene,ESS,Midlands Co-operative  Ltd,A036454,04/08/2021,1413400,2704,Welfare Funerals
North West Leicestershire District Council,31UH,Street Management,Environment Waste Management,ENOWM,Whitespace Work Software Ltd,A041243,11/08/2021,1412209,2350,Operational Equipment
North West Leicestershire District Council,31UH,Property Services,Property Facilities Management,PROPFM,Fire Proof Ltd,A039911,11/08/2021,1413176,681.35,Health & Safety Repairs/Maintenance
North West Leicestershire District Council,31UH,Property Services,Property Facilities Management,PROPFM,Coalville Cleaning Services,A003037,11/08/2021,1413428,2737,Contract Cleaning
North West Leicestershire District Council,31UH,Street Management,Environment Transport,ENOT,Selby's Garage (Woodhouse) Ltd,A044011,11/08/2021,1413460,334.05,Hire Of Operational Equipment
North West Leicestershire District Council,31UH,Street Management,Environment Transport,ENOT,J F Lloyd & Sons,A000991,11/08/2021,1413461,330,Hire Of Operational Equipment
North West Leicestershire District Council,31UH,Street Management,Environment Waste Management,ENOWM,QSP Limited,A031365,11/08/2021,1413462,623,Training Expenses
North West Leicestershire District Council,31UH,Street Management,Environment Parks,ENOP,Rigby Taylor Limited,A001392,11/08/2021,1413476,300.75,Operational Purchases
North West Leicestershire District Council,31UH,Street Management,Environment Transport,ENOT,Mertrux Ltd,A035291,11/08/2021,1413491,281.03,Scheduled Servicing - Parts
North West Leicestershire District Council,31UH,Street Management,Environment Transport,ENOT,Taylor Engineering & Fabrications Ltd,A036178,11/08/2021,1413495,253.33,Repairs - Parts
North West Leicestershire District Council,31UH,Street Management,Environment Transport,ENOT,Taylor Engineering & Fabrications Ltd,A036178,11/08/2021,1413497,421.84,Repairs - Parts
North West Leicestershire District Council,31UH,Street Management,Environment Transport,ENOT,Partic Motor Spares Ltd,A042528,11/08/2021,1413503,524.83,Repairs - Parts
North West Leicestershire District Council,31UH,Street Management,Environment Parks,ENOP,Cuckoo Gap Limited,A000438,11/08/2021,1413505,19685,Routine Ground Maintenance Expenditure
North West Leicestershire District Council,31UH,Planning & Development,Environment - Development Control,EDC,Jeremy Benn Associates Ltd (t/a JBA Consulting),A044010,11/08/2021,1413507,481,Consultants Fees
North West Leicestershire District Council,31UH,Finance,Revenues,REVS,Capita Business Services Ltd,A002968,11/08/2021,1412518,832,Revs & Bens expenditure funded by grants
North West Leicestershire District Council,31UH,Street Management,Environment Transport,ENOT,Certas Energy Uk Ltd,A043448,11/08/2021,1413249,19610.81,Fuel
North West Leicestershire District Council,31UH,Housing,HRA Older Persons Service,HRAOPS,Tunstall Healthcare (UK) Limited,A001701,11/08/2021,1413401,4700,Alarm System Telephones
North West Leicestershire District Council,31UH,Street Management,Environment Transport,ENOT,Riverside Truck Rental Ltd,A045702,11/08/2021,1413463,5500,Hire Of Transport
North West Leicestershire District Council,31UH,Street Management,Environment Transport,ENOT,Riverside Truck Rental Ltd,A045702,11/08/2021,1413464,1100,Hire Of Transport
North West Leicestershire District Council,31UH,Street Management,Environment Transport,ENOT,Riverside Truck Rental Ltd,A045702,11/08/2021,1413465,3938,Hire Of Transport
North West Leicestershire District Council,31UH,Street Management,Environment Transport,ENOT,Riverside Truck Rental Ltd,A045702,11/08/2021,1413466,5170,Hire Of Transport
North West Leicestershire District Council,31UH,Street Management,Environment Transport,ENOT,Riverside Truck Rental Ltd,A045702,11/08/2021,1413467,2448.3,Hire Of Transport
North West Leicestershire District Council,31UH,Housing,HRA Housing Management,HRAHM,James Andrews Recruitment Solutions,A036290,11/08/2021,1413471,340.86,Agency Staff
North West Leicestershire District Council,31UH,Housing,HRA Housing Management,HRAHM,James Andrews Recruitment Solutions,A036290,11/08/2021,1413472,878.73,Agency Staff
North West Leicestershire District Council,31UH,Housing Repairs,HRA Housing Repairs & Maintenance,HRAHRM,Leicestershire County Council,A000950,11/08/2021,1413581,3796.97,Tipping Charges
North West Leicestershire District Council,31UH,Housing,HRA Housing Management,HRAHM,One Consulting,A046600,11/08/2021,1413587,1878.75,Contract Payments (Other) Ext
North West Leicestershire District Council,31UH,Housing,HRA Housing Management,HRAHM,One Consulting,A046600,11/08/2021,1413589,447.5,Contract Payments (Other) Ext
North West Leicestershire District Council,31UH,Housing,HRA Housing Management,HRAHM,One Consulting,A046600,11/08/2021,1413590,425,Contract Payments (Other) Ext
North West Leicestershire District Council,31UH,Housing,HRA Housing Management,HRAHM,One Consulting,A046600,11/08/2021,1413591,447.5,Contract Payments (Other) Ext
North West Leicestershire District Council,31UH,Finance,Financial Planning,FINPLA,LAVAT Consulting Limited,A035908,11/08/2021,1413606,2458.33,Subscriptions
North West Leicestershire District Council,31UH,Housing Repairs,HRA Housing Repairs & Maintenance,HRAHRM,Arco Limited,A000068,11/08/2021,1411504,304.94,Protective Clothing
North West Leicestershire District Council,31UH,Information Technology,ICT Services,ICT,Phoenix Software Limited,A001298,11/08/2021,1413453,594.66,Administrative Equipment
North West Leicestershire District Council,31UH,Finance,Financial Planning,FINPLA,Mazars LLP,A045078,11/08/2021,1413455,9727,Audit Commision Fees
North West Leicestershire District Council,31UH,Information Technology,ICT Services,ICT,Phoenix Software Limited,A001298,11/08/2021,1413457,298.76,Administrative Equipment
North West Leicestershire District Council,31UH,Housing,HRA Housing Management,HRAHM,Aareon UK Ltd,A045197,11/08/2021,1413592,870,Contract Payments (Other) Ext
North West Leicestershire District Council,31UH,Housing,HRA Housing Management,HRAHM,Aareon UK Ltd,A045197,11/08/2021,1413593,870,Contract Payments (Other) Ext
North West Leicestershire District Council,31UH,Housing,HRA Housing Management,HRAHM,Aareon UK Ltd,A045197,11/08/2021,1413594,870,Contract Payments (Other) Ext
North West Leicestershire District Council,31UH,Housing,HRA Housing Management,HRAHM,Aareon UK Ltd,A045197,11/08/2021,1413595,2175,Contract Payments (Other) Ext
North West Leicestershire District Council,31UH,Housing,HRA Housing Management,HRAHM,Aareon UK Ltd,A045197,11/08/2021,1413596,4950,Contract Payments (Other) Ext
North West Leicestershire District Council,31UH,Housing,HRA Housing Management,HRAHM,Aareon UK Ltd,A045197,11/08/2021,1413597,870,Contract Payments (Other) Ext
North West Leicestershire District Council,31UH,Housing,HRA Housing Management,HRAHM,Aareon UK Ltd,A045197,11/08/2021,1413598,452.67,Contract Payments (Other) Ext
North West Leicestershire District Council,31UH,Housing,HRA Housing Management,HRAHM,Aareon UK Ltd,A045197,11/08/2021,1413599,1013.33,Contract Payments (Other) Ext
North West Leicestershire District Council,31UH,Housing,HRA Housing Management,HRAHM,Aareon UK Ltd,A045197,11/08/2021,1413601,870,Contract Payments (Other) Ext
North West Leicestershire District Council,31UH,Street Management,Environment - Street Scene,ESS,Coalville Cleaning Services,A003037,11/08/2021,1413652,295,Health & Safety Repairs/Maintenance
North West Leicestershire District Council,31UH,Street Management,Environment Parks,ENOP,FAROL Limited,A041905,11/08/2021,1413655,337.5,Operational Equipment
North West Leicestershire District Council,31UH,Finance,Financial Planning,FINPLA,Macildowie Associates Ltd,A046022,11/08/2021,1413656,1576.5,Agency Staff
North West Leicestershire District Council,31UH,Finance,Financial Planning,FINPLA,Macildowie Associates Ltd,A046022,11/08/2021,1413657,1576.5,Agency Staff
North West Leicestershire District Council,31UH,Finance,Financial Planning,FINPLA,Macildowie Associates Ltd,A046022,11/08/2021,1413658,1446.96,Agency Staff
North West Leicestershire District Council,31UH,Street Management,Environment - Street Scene,ESS,Regarde Security Ltd,A013049,11/08/2021,1413558,552,Security Services
North West Leicestershire District Council,31UH,Chief Exec,Chief Executive,CHEX,David Tucker Associates,A044236,11/08/2021,1413563,1680,Advertising
North West Leicestershire District Council,31UH,Street Management,Environment Parks,ENOP,Blaise Nursery,A046468,11/08/2021,1413565,8799,Operational Purchases
North West Leicestershire District Council,31UH,Street Management,Environment - Street Scene,ESS,AA Builders Leicester Ltd,A046989,11/08/2021,1413567,2000,Service Contracts
North West Leicestershire District Council,31UH,Information Technology,ICT Services,ICT,Freedom Communications (UK) Ltd,A032826,11/08/2021,1413579,503.4,C.O. - Call Charges
North West Leicestershire District Council,31UH,Street Management,Environment Transport,ENOT,HGV Direct Ltd,A046956,11/08/2021,1413498,265,Repairs - Parts
North West Leicestershire District Council,31UH,Finance,Financial Planning,FINPLA,Michael Page International Recruitment Ltd,A041893,11/08/2021,1413648,10500,Agency Staff
North West Leicestershire District Council,31UH,Finance,Financial Planning,FINPLA,Cabinet Office,A043533,11/08/2021,1413653,1220.9,National Fraud Initiative
North West Leicestershire District Council,31UH,Street Management,Environment Transport,ENOT,Trade Price Windscreens Ltd,A040486,18/08/2021,1410013,320,Non Scheduled Maintenance - Parts
North West Leicestershire District Council,31UH,Property Services,Property Commercial Lettings,PROPCL,Fire Proof Ltd,A039911,18/08/2021,1411208,328,Alt & Mtce-Fixed Plant
North West Leicestershire District Council,31UH,Finance,Financial Planning,FINPLA,Praxis Procurement Ltd,A046964,18/08/2021,1413288,15000,Agency Staff
North West Leicestershire District Council,31UH,Leisure & Culture,Sport & Physical Activity,SPA,Elliott Group Limited,A005413,18/08/2021,1413337,522.58,Portable Accomodation and Storage
North West Leicestershire District Council,31UH,Environmental Health,Environmental Health & Licensing,EEHL,Chine House Veterinary Hospital,A041398,18/08/2021,1413576,542.67,Vet Inspection
North West Leicestershire District Council,31UH,Housing Strategy,Community - Housing Strategy,HS,MRC Community Action,A001208,18/08/2021,1413603,365.5,Homelessness Prevention
North West Leicestershire District Council,31UH,Housing,HRA Older Persons Service,HRAOPS,Tunstall Healthcare (UK) Limited,A001701,18/08/2021,1413644,4700,Alarm System Telephones
North West Leicestershire District Council,31UH,Street Management,Environment Transport,ENOT,Malvern Tyres,A035175,18/08/2021,1413700,260.94,Transport Costs - Tyres
North West Leicestershire District Council,31UH,Street Management,Environment Transport,ENOT,Triscan Systems Limited,A036521,18/08/2021,1413707,825.64,Subscriptions
North West Leicestershire District Council,31UH,Street Management,Environment Transport,ENOT,Ford Motor Company T/A Parts Plus,A045765,18/08/2021,1413711,355.61,Scheduled Servicing - Parts
North West Leicestershire District Council,31UH,Street Management,Environment - Street Scene,ESS,Regarde Security Ltd,A013049,18/08/2021,1413732,570.4,Security Services
North West Leicestershire District Council,31UH,Property Services,Property Facilities Management,PROPFM,Bell Decorating Group Limited,A044051,18/08/2021,1413736,806,Asset Protection
North West Leicestershire District Council,31UH,Planning & Development,Environment - Development Control,EDC,Nexus Planning Limited,A046965,18/08/2021,1413744,3000,External Legal Fees & Advice
North West Leicestershire District Council,31UH,Street Management,Environment Transport,ENOT,Terberg Matec UK Limited,A001647,18/08/2021,1413745,1398.33,Repairs - Parts
North West Leicestershire District Council,31UH,Communications,Corporate - Customer Services,CS,Quadient UK Ltd,A000079,18/08/2021,1413760,1149.9,Postages
North West Leicestershire District Council,31UH,Information Technology,ICT Services,ICT,Six Degrees Technology Group Ltd,A044205,18/08/2021,1413767,18238.38,Admin Equipment - Maintenance
North West Leicestershire District Council,31UH,Property Services,Property Commercial Lettings,PROPCL,Jackson Lift Services Limited,A046018,18/08/2021,1413031,1413,General Repairs
North West Leicestershire District Council,31UH,Property Services,Property Facilities Management,PROPFM,Citron Hygiene Ltd,A033313,18/08/2021,1413385,476.8,Cleaning & Domestic Equipment
North West Leicestershire District Council,31UH,Housing,HRA Housing Management,HRAHM,One Consulting,A046600,18/08/2021,1413427,1700,Legal & Professional Services
North West Leicestershire District Council,31UH,Street Management,Environment Parks,ENOP,Vitax Limited,A031093,18/08/2021,1413451,383.2,Operational Purchases
North West Leicestershire District Council,31UH,Housing,HRA Housing Management,HRAHM,MRC Community Action,A001208,18/08/2021,1413605,485,HRA Hardship Fund
North West Leicestershire District Council,31UH,Legal & Democratic,Electoral & Land Charges,LDELC,Leicestershire County Council,A027423,18/08/2021,1413678,2374,Fees - L.C.C.
North West Leicestershire District Council,31UH,Legal & Democratic,Electoral & Land Charges,LDELC,Leicestershire County Council,A027423,18/08/2021,1413679,2420,Fees - L.C.C.
North West Leicestershire District Council,31UH,Legal & Democratic,Electoral & Land Charges,LDELC,Leicestershire County Council,A027423,18/08/2021,1413682,2220,Fees - L.C.C.
North West Leicestershire District Council,31UH,Legal & Democratic,Electoral & Land Charges,LDELC,Leicestershire County Council,A027423,18/08/2021,1413684,2689,Fees - L.C.C.
North West Leicestershire District Council,31UH,Street Management,Environment Transport,ENOT,Mobile Hydraulics Ltd,A001131,18/08/2021,1413694,379.6,Repairs - Parts
North West Leicestershire District Council,31UH,Street Management,Environment Transport,ENOT,Second 2 None,A031408,18/08/2021,1413708,7890,Contract Cleaning
North West Leicestershire District Council,31UH,Corporate Director,Human Resources,HR,Wider Plan Ltd,A043948,18/08/2021,1413753,1237,Staff Benefit Scheme
North West Leicestershire District Council,31UH,Finance,Financial Planning,FINPLA,LAVAT Consulting Limited,A035908,18/08/2021,1413771,1710,PRE - Public Realm Masterplan
North West Leicestershire District Council,31UH,Street Management,Environment - Street Scene,ESS,Coalville Cleaning Services,A003037,18/08/2021,1413211,418.5,Contract Cleaning
North West Leicestershire District Council,31UH,Leisure & Culture,Cultural Services Arts & Events,CULTEV,Helter Skelter Arts Ltd,A043059,18/08/2021,1413242,5200,Event Expenditure
North West Leicestershire District Council,31UH,Street Management,Environment - Street Scene,ESS,John Merison BMC Ltd,A001092,18/08/2021,1413555,2195,Contract Payments (Other) Ext
North West Leicestershire District Council,31UH,Street Management,Environment - Street Scene,ESS,TH Smith (Sharnford) Ltd/THS,A046984,18/08/2021,1413574,285,Operational Equipment
North West Leicestershire District Council,31UH,Finance,Financial Planning,FINPLA,Macildowie Associates Ltd,A046022,18/08/2021,1413768,1576.5,Agency Staff
North West Leicestershire District Council,31UH,Economic Development,Business Focus Group,BFG,Simon Foote Architects,A045677,18/08/2021,1413780,3400,Grants
North West Leicestershire District Council,31UH,Economic Development,Business Focus Group,BFG,Simon Foote Architects,A045677,18/08/2021,1413782,785,Grants
North West Leicestershire District Council,31UH,Property Services,Property Commercial Lettings,PROPCL,John Merison BMC Ltd,A001092,18/08/2021,1413792,1685.5,General Repairs
North West Leicestershire District Council,31UH,Property Services,Property Facilities Management,PROPFM,John Merison BMC Ltd,A001092,18/08/2021,1413793,1174,General Repairs
North West Leicestershire District Council,31UH,Leisure & Culture,Sport & Physical Activity,SPA,V4 Services Ltd,A041333,18/08/2021,1413798,1287,Project Expenditure
North West Leicestershire District Council,31UH,Street Management,Environment Transport,ENOT,Certas Energy Uk Ltd,A043448,18/08/2021,1413799,571.8,Fuel
North West Leicestershire District Council,31UH,Street Management,Environment Transport,ENOT,Certas Energy Uk Ltd,A043448,18/08/2021,1413800,15335.77,Fuel
North West Leicestershire District Council,31UH,Planning & Development,Environment Planning Policy,EPP,Clearlead Consulting Ltd,A044888,18/08/2021,1413855,1762.5,Consultants Fees
North West Leicestershire District Council,31UH,Street Management,Environment Parks,ENOP,Leicestershire County Council,A028430,18/08/2021,1413879,912.35,Operational Purchases
North West Leicestershire District Council,31UH,Street Management,Environment - Street Scene,ESS,Jenny Hunter,A046936,18/08/2021,1413880,480,Consultants Fees
North West Leicestershire District Council,31UH,Planning & Development,Building Control,EBC,Landscape Science Consultancy Ltd,A045654,18/08/2021,1413939,602,Consultants Fees
North West Leicestershire District Council,31UH,Street Management,Environment - Street Scene,ESS,TMP Worldwide Ltd,A045319,18/08/2021,1413940,312.8,Advertising
North West Leicestershire District Council,31UH,Street Management,Environment - Street Scene,ESS,RAS Town Planning Services,A045293,18/08/2021,1413942,3315,Consultants Fees
North West Leicestershire District Council,31UH,Planning & Development,Environment - Development Control,EDC,Elford Demolition & Remediation Ltd,A046959,18/08/2021,1413972,56920.65,Gilly Mease Expenditure
North West Leicestershire District Council,31UH,Finance,Financial Planning,FINPLA,Sports & Leisure Management Ltd,A045556,18/08/2021,1413974,50674.36,Payments To Contractor
North West Leicestershire District Council,31UH,Finance,Financial Planning,FINPLA,Sports & Leisure Management Ltd,A045556,18/08/2021,1413975,71288.62,Payments To Contractor
North West Leicestershire District Council,31UH,Finance,Financial Planning,FINPLA,Sports & Leisure Management Ltd,A045556,18/08/2021,1413976,57781.79,Payments To Contractor
North West Leicestershire District Council,31UH,Street Management,Environment - Street Scene,ESS,Coalville Cleaning Services,A003037,18/08/2021,1413718,480,Operational Equipment
North West Leicestershire District Council,31UH,Information Technology,ICT Services,ICT,Idox Software Ltd,A034157,18/08/2021,1413738,1624.09,Software Licences
North West Leicestershire District Council,31UH,Street Management,Environment Transport,ENOT,Westbury Industrial Supplies Limited,A009933,18/08/2021,1413788,961.52,Protective Clothing
North West Leicestershire District Council,31UH,Information Technology,ICT Services,ICT,Cuttlefish Multimedia Ltd,A032102,18/08/2021,1413790,1718.33,Website Maintenance
North West Leicestershire District Council,31UH,Leisure & Culture,Sport & Physical Activity,SPA,RPT Consulting Ltd,A043782,18/08/2021,1413795,3200,Consultants Fees
North West Leicestershire District Council,31UH,Planning & Development,Environment Planning Policy,EPP,Gillespies LLP,A045048,18/08/2021,1413856,3996.16,Legal & Professional Services
North West Leicestershire District Council,31UH,Street Management,Environment Transport,ENOT,Enterprise Flex-E-Rent,A046516,18/08/2021,1413866,4434.09,Hire Of Transport
North West Leicestershire District Council,31UH,Street Management,Environment Waste Management,ENOWM,ESE World Limited,A001253,18/08/2021,1413868,3668.5,General Materials
North West Leicestershire District Council,31UH,Leisure & Culture,Cultural Services Arts & Events,CULTEV,Reflec Signs & Graphics Ltd,A025348,18/08/2021,1412779,470,N.W.L. Arts Festival
North West Leicestershire District Council,31UH,Leisure & Culture,Cultural Services Arts & Events,CULTEV,Fools Paradise,A037317,18/08/2021,1413172,8334,Event Expenditure
North West Leicestershire District Council,31UH,Communications,Corporate - Communications,CP,Sutton Media Ltd,A046705,18/08/2021,1413212,380,Advertising
North West Leicestershire District Council,31UH,Property Services,Property Facilities Management,PROPFM,Regarde Security Ltd,A013049,18/08/2021,1413717,733.88,Building Security
North West Leicestershire District Council,31UH,Property Services,Property Facilities Management,PROPFM,Regarde Security Ltd,A013049,18/08/2021,1413731,570.4,Building Security
North West Leicestershire District Council,31UH,Information Technology,ICT Services,ICT,Idox Software Ltd,A034157,18/08/2021,1413737,2674.11,Admin Equipment - Maintenance
North West Leicestershire District Council,31UH,Street Management,Environment Parks,ENOP,Regarde Security Ltd,A013049,18/08/2021,1413742,1113.2,Security Services
North West Leicestershire District Council,31UH,Street Management,Environment Transport,ENOT,PR Horticultural Services Limited,A046639,18/08/2021,1413854,369.96,Repairs - Parts
North West Leicestershire District Council,31UH,Information Technology,ICT Services,ICT,Phoenix Software Limited,A001298,18/08/2021,1413863,369.6,Operational Equipment
North West Leicestershire District Council,31UH,Environmental Health,Environmental Health & Licensing,EEHL,Eville And Jones Limited,A033670,18/08/2021,1413872,3220.9,Vet Inspection
North West Leicestershire District Council,31UH,Street Management,Environment - Street Scene,ESS,Sileby Fabrications Ltd,A044268,18/08/2021,1413883,496,Contract Payments (Other) Ext
North West Leicestershire District Council,31UH,Corporate Director,Human Resources,HR,InPhase Ltd,A044108,18/08/2021,1413943,11000,Computing
North West Leicestershire District Council,31UH,Planning & Development,Environment - Development Control,EDC,Ilex Tree Services,A046556,18/08/2021,1413969,1243,External Legal Fees & Advice
North West Leicestershire District Council,31UH,Planning & Development,Environment - Development Control,EDC,Rob Thompson Urbanism Limited,A045846,18/08/2021,1413970,3937.5,Consultants Fees
North West Leicestershire District Council,31UH,Planning & Development,Environment - Development Control,EDC,Rob Thompson Urbanism Limited,A045846,18/08/2021,1413971,3937.5,Consultants Fees
North West Leicestershire District Council,31UH,Finance,Financial Planning,FINPLA,Sports & Leisure Management Ltd,A045556,18/08/2021,1413977,16536,Payments To Contractor
North West Leicestershire District Council,31UH,Finance,Financial Planning,FINPLA,Sports & Leisure Management Ltd,A045556,18/08/2021,1413978,1501631.58,Contract Payments (Other) Ext
North West Leicestershire District Council,31UH,Street Management,Environment - Street Scene,ESS,Pod Point Ltd,A045298,18/08/2021,1413983,1000,Contract Payments (Other) Ext
North West Leicestershire District Council,31UH,Street Management,Environment Transport,ENOT,O Kay Engineering Services Ltd,A041943,25/08/2021,1413849,2320,Operational Equipment
North West Leicestershire District Council,31UH,Economic Development,Business Focus Group,BFG,Simon Foote Architects,A045677,25/08/2021,1413993,4512,Grants
North West Leicestershire District Council,31UH,Housing,HRA Housing Management,HRAHM,TPAS Limited,A028863,25/08/2021,1413995,495,Training Expenses
North West Leicestershire District Council,31UH,Street Management,Environment Transport,ENOT,Westbury Industrial Supplies Limited,A009933,25/08/2021,1414001,1561.89,Operational Purchases
North West Leicestershire District Council,31UH,Housing,HRA Performance & Business Support,HRAPBS,Experian Ltd,A009242,25/08/2021,1414005,500,Subscriptions
North West Leicestershire District Council,31UH,Street Management,Environment Transport,ENOT,Selby's Garage (Woodhouse) Ltd,A044011,25/08/2021,1414074,338.64,Hire Of Operational Equipment
North West Leicestershire District Council,31UH,Street Management,Environment Transport,ENOT,HGV Direct Ltd,A046956,25/08/2021,1414076,485.5,Repairs - Parts
North West Leicestershire District Council,31UH,Street Management,Environment Transport,ENOT,Ford & Slater Group Ltd,A000625,25/08/2021,1414083,476.32,Transport Costs - Engine Oil
North West Leicestershire District Council,31UH,Street Management,Environment Transport,ENOT,Mertrux Ltd,A035291,25/08/2021,1414086,766.6,Non Scheduled Maintenance - Parts
North West Leicestershire District Council,31UH,Street Management,Environment Transport,ENOT,Hako Machines Limited,A034237,25/08/2021,1414097,1686.75,Operational Equipment - Rep & Maint
North West Leicestershire District Council,31UH,Finance,Financial Planning,FINPLA,Macildowie Associates Ltd,A046022,25/08/2021,1414102,1014.81,Agency Staff
North West Leicestershire District Council,31UH,Chief Exec,Chief Executive,CHEX,Sable Leigh Consultancy Ltd T/A SLC Rail,A042727,25/08/2021,1414113,3312.5,Consultants Fees
North West Leicestershire District Council,31UH,Chief Exec,Chief Executive,CHEX,exi,A045557,25/08/2021,1414114,7179.73,Consultants Fees
North West Leicestershire District Council,31UH,Housing,HRA Housing Management,HRAHM,ECO Skip Hire Ltd,A041559,25/08/2021,1412761,880,Operational Purchases
North West Leicestershire District Council,31UH,Street Management,Environment - Street Scene,ESS,Coalville Cleaning Services,A003037,25/08/2021,1413186,627.75,Contract Cleaning
North West Leicestershire District Council,31UH,Chief Exec,Chief Executive,CHEX,exi,A045557,25/08/2021,1413862,6250,Legal & Professional Services
North West Leicestershire District Council,31UH,Street Management,Environment Waste Management,ENOWM,Keith Cook Training Services,A027792,25/08/2021,1413882,913.5,Training Expenses
North West Leicestershire District Council,31UH,Economic Development,Business Focus Group,BFG,Building Business Consultancy Ltd,A045433,25/08/2021,1413994,5000,Consultants Fees
North West Leicestershire District Council,31UH,Legal & Democratic,Legal Services,LDLS,University Vocational Awards Council,A045693,25/08/2021,1414025,850,Business Development
North West Leicestershire District Council,31UH,Housing,HRA Housing Management,HRAHM,Fretwell Print and Design Limited,A045984,25/08/2021,1414029,635,Annual Report To Tenants
North West Leicestershire District Council,31UH,Property Services,Property Commercial Lettings,PROPCL,Jackson Lift Services Limited,A046018,25/08/2021,1414051,1413,General Repairs
North West Leicestershire District Council,31UH,Street Management,Environment Transport,ENOT,J F Lloyd & Sons,A000991,25/08/2021,1414085,330,Hire Of Operational Equipment
North West Leicestershire District Council,31UH,Street Management,Environment - Street Scene,ESS,Groundsman Tools & Supplies LLP,A030744,25/08/2021,1414111,717.4,Operational Equipment
North West Leicestershire District Council,31UH,Economic Development,Business Focus Group,BFG,Civica Ltd,A021357,25/08/2021,1414112,2236.65,Consultants Fees
North West Leicestershire District Council,31UH,Housing,HRA Housing Management,HRAHM,James Andrews Recruitment Solutions,A036290,25/08/2021,1414116,855.14,Agency Staff
North West Leicestershire District Council,31UH,Communications,Corporate - Customer Services,CS,Quadient UK Ltd,A000079,25/08/2021,1414118,586.05,Operational Equipment
North West Leicestershire District Council,31UH,Housing Repairs,HRA Housing Repairs & Maintenance,HRAHRM,Ctrack Ltd,A045628,25/08/2021,1413997,1576.8,Vehicle and Transport Costs
North West Leicestershire District Council,31UH,Environmental Health,Environmental Health & Licensing,EEHL,Institute of Licensing (Events) Limited,A033316,25/08/2021,1414124,980,Training Expenses
North West Leicestershire District Council,31UH,Property Services,Property Commercial Lettings,PROPCL,Coalville Cleaning Services,A003037,25/08/2021,1414127,667.62,Contract Cleaning
North West Leicestershire District Council,31UH,Property Services,Property Commercial Lettings,PROPCL,Coalville Cleaning Services,A003037,25/08/2021,1414128,355.18,Contract Cleaning
North West Leicestershire District Council,31UH,Planning & Development,Environment Community Planning,ECP,Back2 International Ltd,A047005,25/08/2021,1414129,489.17,Operational Equipment
North West Leicestershire District Council,31UH,Street Management,Environment - Street Scene,ESS,Coalville Cleaning Services,A003037,25/08/2021,1414187,334.8,Contract Cleaning
North West Leicestershire District Council,31UH,Street Management,Environment - Street Scene,ESS,Coalville Cleaning Services,A003037,25/08/2021,1414188,265.05,Contract Cleaning
North West Leicestershire District Council,31UH,Housing,HRA Housing Management,HRAHM,Elan Removals,A041305,04/08/2021,1413251,990,Under Occupancy Incentives
North West Leicestershire District Council,31UH,Street Management,Environment - Street Scene,ESS,Leicestershire County Council,A000950,04/08/2021,1413277,1717.2,Parking Fee Levy
North West Leicestershire District Council,31UH,Housing,HRA Housing Management,HRAHM,Elan Removals,A041305,04/08/2021,1413279,680,Under Occupancy Incentives
North West Leicestershire District Council,31UH,Finance,Exchequer Services,EXCH,Click Travel Ltd,A044308,04/08/2021,1413297,2218.81,Travel and Subsistence
North West Leicestershire District Council,31UH,Housing,HRA Housing Management,HRAHM,Severn Trent Water Limited,A001468,04/08/2021,1413306,1285.41,Water Charges (Metered)
North West Leicestershire District Council,31UH,Information Technology,ICT Services,ICT,EE Ltd (Airtime),A018592,04/08/2021,1413332,4861.5,Mobile Telephones
North West Leicestershire District Council,31UH,Information Technology,ICT Services,ICT,EE Ltd (Airtime),A018592,04/08/2021,1413333,2183.28,Mobile Telephones
North West Leicestershire District Council,31UH,Economic Development,Business Focus Group,BFG,Model Railway Company,A046988,04/08/2021,1413341,975,Digital Growth Grant
North West Leicestershire District Council,31UH,Property Services,Property Commercial Lettings,PROPCL,British Telecommunications Plc,A000233,04/08/2021,1413345,548.9,Telephones
North West Leicestershire District Council,31UH,Finance,Exchequer Services,EXCH,Comensura Limited,A036958,04/08/2021,1413408,24019.05,Agency Staff
North West Leicestershire District Council,31UH,Housing Repairs,HRA Housing Repairs & Maintenance,HRAHRM,McHale Contracts & Plant Environmental LLP,A046696,04/08/2021,1413409,469.5,Surveying
North West Leicestershire District Council,31UH,Legal & Democratic,Legal Services,LDLS,Martin Lee & Co,A030613,04/08/2021,1413417,707.5,Legal & Professional Services
North West Leicestershire District Council,31UH,Legal & Democratic,Legal Services,LDLS,Martin Lee & Co,A030613,04/08/2021,1413418,2505,Legal & Professional Services
North West Leicestershire District Council,31UH,Housing Repairs,HRA Housing Repairs & Maintenance,HRAHRM,Morgan Lambert Limited,A044192,04/08/2021,1413421,319.2,Servicing
North West Leicestershire District Council,31UH,Finance,Financial Planning,FINPLA,Department for Communities & Local Government,A028518,05/08/2021,1413433,2485742,Subsidy Receipts & Repayments 
North West Leicestershire District Council,31UH,Finance,Financial Planning,FINPLA,Leicestershire County Council,A000950,05/08/2021,1413434,4859265,Precept
North West Leicestershire District Council,31UH,Finance,Financial Planning,FINPLA,"Leicester, Leicestershire & Rutland Combined Fire Authority",A028339,05/08/2021,1413435,238579,Precept
North West Leicestershire District Council,31UH,Finance,Financial Planning,FINPLA,The Office of the Police and Crime Commissioner for Leicestershire,A007096,05/08/2021,1413436,855131.8,Precept
North West Leicestershire District Council,31UH,Finance,Financial Planning,FINPLA,Leicestershire County Council,A000950,05/08/2021,1413437,2035830,Precept
North West Leicestershire District Council,31UH,Legal & Democratic,Legal Services,LDLS,H M C S,A033868,05/08/2021,1413438,783,Legal & Professional Services
North West Leicestershire District Council,31UH,Finance,Exchequer Services,EXCH,ESPO,A000958,05/08/2021,1413439,4316.83,Gas
North West Leicestershire District Council,31UH,Finance,Revenues,REVS,Redacted - Personal Data,A000133,05/08/2021,1413440,500,Test and Trace Grants
North West Leicestershire District Council,31UH,Finance,Revenues,REVS,Redacted - Personal Data,A000133,05/08/2021,1413441,500,Test and Trace Grants
North West Leicestershire District Council,31UH,Finance,Financial Planning,FINPLA,Redacted - Personal Data,A000133,05/08/2021,1413442,500,Test and Trace Grants
North West Leicestershire District Council,31UH,Finance,Revenues,REVS,Redacted - Personal Data,A000133,05/08/2021,1413443,500,Test and Trace Grants
North West Leicestershire District Council,31UH,Finance,Revenues,REVS,Redacted - Personal Data,A000133,05/08/2021,1413444,500,Test and Trace Grants
North West Leicestershire District Council,31UH,Finance,Revenues,REVS,Redacted - Personal Data,A000133,05/08/2021,1413445,500,Test and Trace Grants
North West Leicestershire District Council,31UH,Finance,Revenues,REVS,Redacted - Personal Data,A000133,05/08/2021,1413446,500,Test and Trace Grants
North West Leicestershire District Council,31UH,Finance,Revenues,REVS,Redacted - Personal Data,A000133,05/08/2021,1413447,500,Test and Trace Grants
North West Leicestershire District Council,31UH,Finance,Revenues,REVS,Redacted - Personal Data,A000133,05/08/2021,1413448,500,Test and Trace Grants
North West Leicestershire District Council,31UH,Finance,Revenues,REVS,Redacted - Personal Data,A000133,05/08/2021,1413449,500,Test and Trace Grants
North West Leicestershire District Council,31UH,Finance,Revenues,REVS,Redacted - Personal Data,A000133,05/08/2021,1413450,500,Test and Trace Grants
North West Leicestershire District Council,31UH,Housing,HRA Housing Management,HRAHM,JLA Limited,A043639,11/08/2021,1413399,427.84,Cleaning & Domestic Equipment
North West Leicestershire District Council,31UH,Housing,HRA Housing Management,HRAHM,Leicestershire County Council,A000950,11/08/2021,1413477,8032.55,Contract Cleaning
North West Leicestershire District Council,31UH,Finance,Financial Planning,FINPLA,Redacted - Personal Data,A046077,11/08/2021,1413482,2218.51,Grants
North West Leicestershire District Council,31UH,Legal & Democratic,Legal Services,LDLS,No 5 Chambers Ltd,A022238,11/08/2021,1413483,1500,Legal & Professional Services
North West Leicestershire District Council,31UH,Neighbourhoods & Communities,N & C Neighbourhoods,NACN,Measham Community & Recreation Centre,A041520,11/08/2021,1413484,500,Small Grant Scheme
North West Leicestershire District Council,31UH,Housing,HRA Housing Management,HRAHM,JLA Limited,A043639,11/08/2021,1413485,412,Cleaning & Domestic Equipment
North West Leicestershire District Council,31UH,Housing,HRA Housing Management,HRAHM,Leicestershire County Council,A000950,11/08/2021,1413486,1810.79,Contract Cleaning
North West Leicestershire District Council,31UH,Housing Repairs,HRA Housing Repairs & Maintenance,HRAHRM,European Asbestos Services Ltd,A045507,11/08/2021,1413487,7251.32,Contract Payments (Dws) Ext
North West Leicestershire District Council,31UH,Property Services,Property Commercial Lettings,PROPCL,Water Plus Limited,A044043,11/08/2021,1413488,298.71,Water Charges (Metered)
North West Leicestershire District Council,31UH,Housing,HRA Housing Management,HRAHM,JLA Limited,A043639,11/08/2021,1413508,282,Cleaning & Domestic Equipment
North West Leicestershire District Council,31UH,Street Management,Environment Waste Management,ENOWM,SUEZ Recycling and Recovery UK Ltd,A001108,11/08/2021,1413513,303.56,Tipping Charges
North West Leicestershire District Council,31UH,Street Management,Environment - Street Scene,ESS,John Merison BMC Ltd,A001092,11/08/2021,1413518,-2420,Contract Payments (Other) Ext
North West Leicestershire District Council,31UH,Neighbourhoods & Communities,N & C Neighbourhoods,NACN,Measham Medical Unit Gardening Club,A046991,11/08/2021,1413577,256.5,Small Grant Scheme
North West Leicestershire District Council,31UH,Finance,Exchequer Services,EXCH,Click Travel Ltd,A044308,11/08/2021,1413580,3014.87,Travel and Subsistence
North West Leicestershire District Council,31UH,Information Technology,ICT Services,ICT,De Lage Landen Leasing Limited,A046819,11/08/2021,1413643,294,Equipment Operating Leases
North West Leicestershire District Council,31UH,Street Management,Environment Parks,ENOP,Plantscape Ltd,A033650,11/08/2021,1413650,8691.6,Horticultural Supplies
North West Leicestershire District Council,31UH,Economic Development,Business Focus Group,BFG,Quorn Country Foods Ltd,A046998,11/08/2021,1413651,51300,Business Growth Grant
North West Leicestershire District Council,31UH,Economic Development,Business Focus Group,BFG,Ashby Wines,A046999,11/08/2021,1413669,1000,Digital Growth Grant
North West Leicestershire District Council,31UH,Economic Development,Business Focus Group,BFG,Midland Parrots,A047000,11/08/2021,1413672,1000,Digital Growth Grant
North West Leicestershire District Council,31UH,Economic Development,Business Focus Group,BFG,Body Toning Emporium,A047001,11/08/2021,1413674,800,Digital Growth Grant
North West Leicestershire District Council,31UH,Economic Development,Business Focus Group,BFG,Harmony Glass,A047002,11/08/2021,1413675,1000,Digital Growth Grant
North West Leicestershire District Council,31UH,Economic Development,Business Focus Group,BFG,Renaissance,A047003,11/08/2021,1413676,1000,Digital Growth Grant
North West Leicestershire District Council,31UH,Housing,HRA Housing Management,HRAHM,Leicestershire County Council,A000950,11/08/2021,1413685,9981.63,Contract Cleaning
North West Leicestershire District Council,31UH,Finance,Revenues,REVS,Redacted - Personal Data,A000133,11/08/2021,1413659,500,Test and Trace Grants
North West Leicestershire District Council,31UH,Finance,Revenues,REVS,Redacted - Personal Data,A000133,11/08/2021,1413660,500,Test and Trace Grants
North West Leicestershire District Council,31UH,Finance,Revenues,REVS,Redacted - Personal Data,A000133,11/08/2021,1413661,500,Test and Trace Grants
North West Leicestershire District Council,31UH,Finance,Revenues,REVS,Redacted - Personal Data,A000133,11/08/2021,1413662,500,Test and Trace Grants
North West Leicestershire District Council,31UH,Finance,Revenues,REVS,Redacted - Personal Data,A000133,11/08/2021,1413663,500,Test and Trace Grants
North West Leicestershire District Council,31UH,Finance,Revenues,REVS,Redacted - Personal Data,A000133,11/08/2021,1413664,500,Test and Trace Grants
North West Leicestershire District Council,31UH,Finance,Revenues,REVS,Redacted - Personal Data,A000133,11/08/2021,1413665,500,Test and Trace Grants
North West Leicestershire District Council,31UH,Finance,Revenues,REVS,Redacted - Personal Data,A000133,11/08/2021,1413666,500,Test and Trace Grants
North West Leicestershire District Council,31UH,Finance,Revenues,REVS,Redacted - Personal Data,A000133,11/08/2021,1413668,500,Test and Trace Grants
North West Leicestershire District Council,31UH,Finance,Revenues,REVS,Redacted - Personal Data,A000133,11/08/2021,1413670,500,Test and Trace Grants
North West Leicestershire District Council,31UH,Finance,Revenues,REVS,Redacted - Personal Data,A000133,11/08/2021,1413671,500,Test and Trace Grants
North West Leicestershire District Council,31UH,Finance,Revenues,REVS,Redacted - Personal Data,A000133,11/08/2021,1413673,500,Test and Trace Grants
North West Leicestershire District Council,31UH,Housing,HRA Housing Management,HRAHM,Redacted - Personal Data,A000133,11/08/2021,1413680,250,Under Occupancy Incentives
North West Leicestershire District Council,31UH,Finance,Revenues,REVS,Redacted - Personal Data,A000133,11/08/2021,1413681,500,Test and Trace Grants
North West Leicestershire District Council,31UH,Finance,Revenues,REVS,Redacted - Personal Data,A000133,11/08/2021,1413683,500,Test and Trace Grants
North West Leicestershire District Council,31UH,Street Management,Environment Parks,ENOP,Veolia Environmental Trust,A000133,11/08/2021,1413686,7331,Operational Equipment
North West Leicestershire District Council,31UH,Street Management,Environment - Street Scene,ESS,John Merison BMC Ltd,A001092,18/08/2021,1413271,2420,Contract Payments (Other) Ext
North West Leicestershire District Council,31UH,Communications,Corporate - Customer Services,CS,Quadient UK Ltd,A000079,18/08/2021,1413756,5000,Postages
North West Leicestershire District Council,31UH,Housing Repairs,HRA Housing Repairs & Maintenance,HRAHRM,Sure Maintenance Ltd,A040460,18/08/2021,1413761,4315.37,Plumbing & Heating
North West Leicestershire District Council,31UH,Housing Repairs,HRA Housing Repairs & Maintenance,HRAHRM,Sure Maintenance Ltd,A040460,18/08/2021,1413762,17265.96,Plumbing & Heating
North West Leicestershire District Council,31UH,Housing Repairs,HRA Housing Repairs & Maintenance,HRAHRM,Sure Maintenance Ltd,A040460,18/08/2021,1413763,18735.94,Plumbing & Heating
North West Leicestershire District Council,31UH,Housing Repairs,HRA Housing Repairs & Maintenance,HRAHRM,Sure Maintenance Ltd,A040460,18/08/2021,1413764,784.01,Plumbing & Heating
North West Leicestershire District Council,31UH,Housing Repairs,HRA Housing Repairs & Maintenance,HRAHRM,Sure Maintenance Ltd,A040460,18/08/2021,1413765,2922.36,Plumbing & Heating
North West Leicestershire District Council,31UH,Finance,Exchequer Services,EXCH,Redacted - Personal Data,A047006,18/08/2021,1413769,360,Abandoned vehicle expenditure
North West Leicestershire District Council,31UH,Information Technology,ICT Services,ICT,Canon UK Ltd,A040459,18/08/2021,1413772,881.45,Equipment Operating Leases
North West Leicestershire District Council,31UH,Information Technology,ICT Services,ICT,Canon UK Ltd,A040459,18/08/2021,1413773,3822.88,Equipment Operating Leases
North West Leicestershire District Council,31UH,Housing,HRA Housing Management,HRAHM,Leicestershire County Council,A000950,18/08/2021,1413774,7708.23,Contract Cleaning
North West Leicestershire District Council,31UH,Housing,HRA Housing Management,HRAHM,Leicestershire County Council,A000950,18/08/2021,1413775,8022.13,Contract Cleaning
North West Leicestershire District Council,31UH,Housing,HRA Housing Management,HRAHM,Leicestershire County Council,A000950,18/08/2021,1413776,7641.42,Contract Cleaning
North West Leicestershire District Council,31UH,Housing,HRA Housing Management,HRAHM,Leicestershire County Council,A000950,18/08/2021,1413777,7525.9,Contract Cleaning
North West Leicestershire District Council,31UH,Finance,Exchequer Services,EXCH,Click Travel Ltd,A044308,18/08/2021,1413785,5406.8,Travel and Subsistence
North West Leicestershire District Council,31UH,Housing Repairs,HRA Housing Repairs & Maintenance,HRAHRM,Alan Cairns Associates Ltd,A046607,18/08/2021,1413807,800,Legal & Professional Services
North West Leicestershire District Council,31UH,Street Management,Environment Parks,ENOP,Leicestershire County Council,A000950,18/08/2021,1413808,356.88,Contract Cleaning
North West Leicestershire District Council,31UH,Street Management,Environment - Street Scene,ESS,Water Plus Limited,A044043,18/08/2021,1413811,649.61,Water Charges (Metered)
North West Leicestershire District Council,31UH,Neighbourhoods & Communities,N & C Neighbourhoods,NACN,Without Walls Christian Fellowship,A035916,18/08/2021,1413813,1000,Digital Growth Grant
North West Leicestershire District Council,31UH,Finance,Exchequer Services,EXCH,Comensura Limited,A036958,18/08/2021,1413814,20562.91,Agency Staff
North West Leicestershire District Council,31UH,Street Management,Environment Transport,ENOT,Terberg Matec UK Limited,A001647,18/08/2021,1413853,-1386.53,Repairs - Parts
North West Leicestershire District Council,31UH,Housing,HRA Housing Management,HRAHM,Redacted - Personal Data,A047009,18/08/2021,1413865,1800,Compensation
North West Leicestershire District Council,31UH,Housing Strategy,Community - Housing Strategy,HS,P3- People Potential Possibilities,A046599,18/08/2021,1413867,7758.52,Grants
North West Leicestershire District Council,31UH,Finance,Exchequer Services,EXCH,HM Revenues & Customs,A038465,18/08/2021,1413869,647.8,Payment To Inland Revenue
North West Leicestershire District Council,31UH,Housing,HRA Housing Management,HRAHM,Leicestershire County Council,A000950,18/08/2021,1413873,9407.5,Contract Cleaning
North West Leicestershire District Council,31UH,Housing,HRA Housing Management,HRAHM,Leicestershire County Council,A000950,18/08/2021,1413874,9502.36,Contract Cleaning
North West Leicestershire District Council,31UH,Housing,HRA Housing Management,HRAHM,James Andrews Recruitment Solutions,A036290,18/08/2021,1413876,884.63,Agency Staff
North West Leicestershire District Council,31UH,Housing,HRA Housing Management,HRAHM,James Andrews Recruitment Solutions,A036290,18/08/2021,1413877,364.78,Agency Staff
North West Leicestershire District Council,31UH,Housing,HRA Housing Management,HRAHM,Antony Hodan Holdings Ltd,A047012,18/08/2021,1413955,2200,Legal & Professional Services
North West Leicestershire District Council,31UH,Housing Repairs,HRA Housing Repairs & Maintenance,HRAHRM,PPG Architectural Coatings Ltd,A000876,18/08/2021,1413963,992.93,Internal Decorations
North West Leicestershire District Council,31UH,Legal & Democratic,Legal Services,LDLS,Browne Jacobson LLP,A042988,18/08/2021,1413964,2271.5,Training Expenses
North West Leicestershire District Council,31UH,Legal & Democratic,Legal Services,LDLS,Browne Jacobson LLP,A042988,18/08/2021,1413965,4100,Legal & Professional Services
North West Leicestershire District Council,31UH,Housing Repairs,HRA Housing Repairs & Maintenance,HRAHRM,Sure Maintenance Ltd,A040460,18/08/2021,1413966,899.04,Plumbing & Heating
North West Leicestershire District Council,31UH,Finance,Exchequer Services,EXCH,Comensura Limited,A036958,18/08/2021,1413968,25032.01,Agency Staff
North West Leicestershire District Council,31UH,Finance,Financial Planning,FINPLA,Browne Jacobson LLP,A000133,20/08/2021,1414004,51151,Property Purchase
North West Leicestershire District Council,31UH,Finance,Revenues,REVS,Redacted - Personal Data,A000133,20/08/2021,1414006,500,Test and Trace Grants
North West Leicestershire District Council,31UH,Finance,Revenues,REVS,Redacted - Personal Data,A000133,20/08/2021,1414007,500,Test and Trace Grants
North West Leicestershire District Council,31UH,Finance,Revenues,REVS,Redacted - Personal Data,A000133,20/08/2021,1414008,500,Test and Trace Grants
North West Leicestershire District Council,31UH,Finance,Revenues,REVS,Redacted - Personal Data,A000133,20/08/2021,1414009,500,Test and Trace Grants
North West Leicestershire District Council,31UH,Finance,Revenues,REVS,Redacted - Personal Data,A000133,20/08/2021,1414010,500,Test and Trace Grants
North West Leicestershire District Council,31UH,Finance,Exchequer Services,EXCH,British Telecommunications Plc,A000233,20/08/2021,1414016,4009.86,Alarm System Telephones
North West Leicestershire District Council,31UH,Finance,Exchequer Services,EXCH,Total Gas & Power,A033385,20/08/2021,1414017,17193.58,Electricity
North West Leicestershire District Council,31UH,Finance,Exchequer Services,EXCH,MHR International UK Ltd,A045150,24/08/2021,1414069,2496,Disbursements
North West Leicestershire District Council,31UH,Housing,HRA Housing Management,HRAHM,Redacted - Personal Data,A000133,24/08/2021,1414070,250,Under Occupancy Incentives
North West Leicestershire District Council,31UH,Housing,HRA Housing Management,HRAHM,Redacted - Personal Data,A000133,24/08/2021,1414071,250,Under Occupancy Incentives
North West Leicestershire District Council,31UH,Finance,Exchequer Services,EXCH,H M Land Registry,A000713,24/08/2021,1414132,463,Legal & Professional Services
North West Leicestershire District Council,31UH,Finance,Financial Planning,FINPLA,Commerzbank AG,A045318,24/08/2021,1414133,83769.86,Negotiable Bonds
North West Leicestershire District Council,31UH,Finance,Financial Planning,FINPLA,Barclays Mercantile Business,A003940,24/08/2021,1414134,92610.51,Negotiable Bonds
North West Leicestershire District Council,31UH,Finance,Revenues,REVS,Redacted - Personal Data,A000133,24/08/2021,1414135,500,Test and Trace Grants
North West Leicestershire District Council,31UH,Finance,Revenues,REVS,Redacted - Personal Data,A000133,24/08/2021,1414136,500,Test and Trace Grants
North West Leicestershire District Council,31UH,Finance,Revenues,REVS,Redacted - Personal Data,A000133,24/08/2021,1414137,500,Test and Trace Grants
North West Leicestershire District Council,31UH,Finance,Revenues,REVS,Redacted - Personal Data,A000133,24/08/2021,1414138,500,Test and Trace Grants
North West Leicestershire District Council,31UH,Finance,Revenues,REVS,Redacted - Personal Data,A000133,24/08/2021,1414139,500,Test and Trace Grants
North West Leicestershire District Council,31UH,Economic Development,Business Focus Group,BFG,The Handmade Brownie Company,A047014,25/08/2021,1413992,1000,Void Property Clearance Services
North West Leicestershire District Council,31UH,Finance,Exchequer Services,EXCH,Click Travel Ltd,A044308,25/08/2021,1414002,2114.43,Travel and Subsistence
North West Leicestershire District Council,31UH,Legal & Democratic,Member Services,LDMS,SCI Print Limited,A028974,25/08/2021,1414023,7316.29,Other Printing
North West Leicestershire District Council,31UH,Information Technology,ICT Services,ICT,British Telecommunications Plc,A000233,25/08/2021,1414054,343.57,General Repairs
North West Leicestershire District Council,31UH,Property Services,Property Facilities Management,PROPFM,British Telecommunications Plc,A000233,25/08/2021,1414062,280.89,Telephones
North West Leicestershire District Council,31UH,Finance,Financial Planning,FINPLA,Leicestershire County Council,A000950,25/08/2021,1414063,500,Legal & Professional Services
North West Leicestershire District Council,31UH,Housing Repairs,HRA Housing Repairs & Maintenance,HRAHRM,Laker BMS Ltd,A031787,,1414065,-9000,Contract Payments (Dws) Ext
North West Leicestershire District Council,31UH,Housing,HRA Housing Management,HRAHM,JLA Limited,A043639,25/08/2021,1414096,302,Cleaning & Domestic Equipment
North West Leicestershire District Council,31UH,Legal & Democratic,Legal Services,LDLS,Browne Jacobson LLP,A042988,25/08/2021,1414098,1929.5,Legal & Professional Services
North West Leicestershire District Council,31UH,Legal & Democratic,Legal Services,LDLS,Browne Jacobson LLP,A042988,25/08/2021,1414099,507.5,Legal & Professional Services
North West Leicestershire District Council,31UH,Housing,HRA Housing Management,HRAHM,JLA Limited,A043639,25/08/2021,1414100,442,Cleaning & Domestic Equipment
North West Leicestershire District Council,31UH,Housing,HRA Housing Management,HRAHM,James Andrews Recruitment Solutions,A036290,25/08/2021,1414104,890.52,Agency Staff
North West Leicestershire District Council,31UH,Housing,HRA Housing Management,HRAHM,James Andrews Recruitment Solutions,A036290,25/08/2021,1414105,412.62,Agency Staff
North West Leicestershire District Council,31UH,Communications,Corporate - Customer Services,CS,Quadient UK Ltd,A000079,25/08/2021,1414120,902,Postages
North West Leicestershire District Council,31UH,Environmental Health,Environmental Health & Licensing,EEHL,Animal Care Services Limited,A046488,25/08/2021,1414126,2206.33,Stray Dog Service
North West Leicestershire District Council,31UH,Housing Repairs,HRA Housing Repairs & Maintenance,HRAHRM,Morgan Lambert Limited,A045162,25/08/2021,1414131,2034,Servicing
North West Leicestershire District Council,31UH,Housing Repairs,HRA Housing Repairs & Maintenance,HRAHRM,Morgan Lambert Limited,A045162,25/08/2021,1414194,359.1,Servicing
North West Leicestershire District Council,31UH,Finance,Exchequer Services,EXCH,Comensura Limited,A036958,25/08/2021,1414196,23727.33,Agency Staff
North West Leicestershire District Council,31UH,Housing Repairs,HRA Housing Repairs & Maintenance,HRAHRM,Sure Maintenance Ltd,A040460,25/08/2021,1414197,33015.28,Plumbing & Heating
North West Leicestershire District Council,31UH,Housing Repairs,HRA Housing Repairs & Maintenance,HRAHRM,John Merison BMC Ltd,A001092,11/08/2021,1413608,765,Contract Payments (Other) Ext
North West Leicestershire District Council,31UH,Housing Repairs,HRA Housing Repairs & Maintenance,HRAHRM,Premier Mobility UK Ltd,A045304,11/08/2021,1413609,5605.11,Contract Payments (Dws) Ext
North West Leicestershire District Council,31UH,Housing Repairs,HRA Housing Repairs & Maintenance,HRAHRM,Orbis Property Protection Ltd,A028149,11/08/2021,1413610,352.82,Void Property Clearance Services
North West Leicestershire District Council,31UH,Housing Repairs,HRA Housing Repairs & Maintenance,HRAHRM,John Merison BMC Ltd,A001092,11/08/2021,1413620,2193.15,Contract Payments (Other) Ext
North West Leicestershire District Council,31UH,Housing Repairs,HRA Housing Repairs & Maintenance,HRAHRM,Orbis Property Protection Ltd,A028149,11/08/2021,1413621,1425.42,Void Property Clearance Services
North West Leicestershire District Council,31UH,Housing Repairs,HRA Housing Repairs & Maintenance,HRAHRM,Emperor Scaffolding Limited,A038405,18/08/2021,1413816,300,Hire Of Operational Equipment
North West Leicestershire District Council,31UH,Housing Repairs,HRA Housing Repairs & Maintenance,HRAHRM,TECSERV UK LIMITED,A028261,18/08/2021,1413818,508.74,Contract Payments (Dws) Ext
North West Leicestershire District Council,31UH,Housing Repairs,HRA Housing Repairs & Maintenance,HRAHRM,Laker BMS Ltd,A031787,18/08/2021,1413821,250,Plumbing & Heating
North West Leicestershire District Council,31UH,Housing Repairs,HRA Housing Repairs & Maintenance,HRAHRM,Emperor Scaffolding Limited,A038405,18/08/2021,1413822,980,Hire Of Operational Equipment
North West Leicestershire District Council,31UH,Housing Repairs,HRA Housing Repairs & Maintenance,HRAHRM,Emperor Scaffolding Limited,A038405,18/08/2021,1413823,1480,Hire Of Operational Equipment
North West Leicestershire District Council,31UH,Housing Repairs,HRA Housing Repairs & Maintenance,HRAHRM,Emperor Scaffolding Limited,A038405,18/08/2021,1413824,500,Hire Of Operational Equipment
North West Leicestershire District Council,31UH,Housing Repairs,HRA Housing Repairs & Maintenance,HRAHRM,Emperor Scaffolding Limited,A038405,18/08/2021,1413825,440,Hire Of Operational Equipment
North West Leicestershire District Council,31UH,Housing Repairs,HRA Housing Repairs & Maintenance,HRAHRM,Emperor Scaffolding Limited,A038405,18/08/2021,1413828,1200,Hire Of Operational Equipment
North West Leicestershire District Council,31UH,Housing Repairs,HRA Housing Repairs & Maintenance,HRAHRM,Emperor Scaffolding Limited,A038405,18/08/2021,1413829,660,Hire Of Operational Equipment
North West Leicestershire District Council,31UH,Housing Repairs,HRA Housing Repairs & Maintenance,HRAHRM,Emperor Scaffolding Limited,A038405,18/08/2021,1413830,435,Hire Of Operational Equipment
North West Leicestershire District Council,31UH,Housing Repairs,HRA Housing Repairs & Maintenance,HRAHRM,Emperor Scaffolding Limited,A038405,18/08/2021,1413831,300,Hire Of Operational Equipment
North West Leicestershire District Council,31UH,Housing Repairs,HRA Housing Repairs & Maintenance,HRAHRM,Emperor Scaffolding Limited,A038405,18/08/2021,1413832,420,Hire Of Operational Equipment
North West Leicestershire District Council,31UH,Housing Repairs,HRA Housing Repairs & Maintenance,HRAHRM,Emperor Scaffolding Limited,A038405,18/08/2021,1413833,395,Hire Of Operational Equipment
North West Leicestershire District Council,31UH,Housing Repairs,HRA Housing Repairs & Maintenance,HRAHRM,Emperor Scaffolding Limited,A038405,18/08/2021,1413834,2000,Hire Of Operational Equipment
North West Leicestershire District Council,31UH,Housing Repairs,HRA Housing Repairs & Maintenance,HRAHRM,Emperor Scaffolding Limited,A038405,18/08/2021,1413835,2000,Hire Of Operational Equipment
North West Leicestershire District Council,31UH,Housing Repairs,HRA Housing Repairs & Maintenance,HRAHRM,Laker BMS Ltd,A031787,18/08/2021,1413842,2615.96,Contract Payments (Dws) Ext
North West Leicestershire District Council,31UH,Housing Repairs,HRA Housing Repairs & Maintenance,HRAHRM,Laker BMS Ltd,A031787,18/08/2021,1413843,5676,Contract Payments (Dws) Ext
North West Leicestershire District Council,31UH,Housing Repairs,HRA Housing Repairs & Maintenance,HRAHRM,Laker BMS Ltd,A031787,18/08/2021,1413844,5967,Contract Payments (Dws) Ext
North West Leicestershire District Council,31UH,Housing Repairs,HRA Housing Repairs & Maintenance,HRAHRM,Laker BMS Ltd,A031787,18/08/2021,1413845,320,Plumbing & Heating
North West Leicestershire District Council,31UH,Housing Repairs,HRA Housing Repairs & Maintenance,HRAHRM,Laker BMS Ltd,A031787,18/08/2021,1413846,1400,Plumbing & Heating
North West Leicestershire District Council,31UH,Housing Repairs,HRA Housing Repairs & Maintenance,HRAHRM,Cadent Gas limited,A032629,18/08/2021,1413847,795,Contract Payments (Dws) Ext
North West Leicestershire District Council,31UH,Housing Repairs,HRA Housing Repairs & Maintenance,HRAHRM,Timber-Link Fencing Ltd,A033297,18/08/2021,1413984,1325,External Contractor Payments
North West Leicestershire District Council,31UH,Housing Repairs,HRA Housing Repairs & Maintenance,HRAHRM,Timber-Link Fencing Ltd,A033297,18/08/2021,1413986,1375,External Contractor Payments
North West Leicestershire District Council,31UH,Housing Repairs,HRA Housing Repairs & Maintenance,HRAHRM,Timber-Link Fencing Ltd,A033297,18/08/2021,1413987,281,External Contractor Payments
North West Leicestershire District Council,31UH,Housing Repairs,HRA Housing Repairs & Maintenance,HRAHRM,Premier Mobility UK Ltd,A045304,25/08/2021,1414034,949.06,Plumbing & Heating
North West Leicestershire District Council,31UH,Housing Repairs,HRA Housing Repairs & Maintenance,HRAHRM,TECSERV UK LIMITED,A028261,25/08/2021,1414035,358.7,Contract Payments (Dws) Ext
North West Leicestershire District Council,31UH,Housing Repairs,HRA Housing Repairs & Maintenance,HRAHRM,Emperor Scaffolding Limited,A038405,25/08/2021,1414039,435,Hire Of Operational Equipment
North West Leicestershire District Council,31UH,Housing Repairs,HRA Housing Repairs & Maintenance,HRAHRM,Emperor Scaffolding Limited,A038405,25/08/2021,1414040,400,Hire Of Operational Equipment
North West Leicestershire District Council,31UH,Housing Repairs,HRA Housing Repairs & Maintenance,HRAHRM,Emperor Scaffolding Limited,A038405,25/08/2021,1414042,1720,Hire Of Operational Equipment
North West Leicestershire District Council,31UH,Housing Repairs,HRA Housing Repairs & Maintenance,HRAHRM,Emperor Scaffolding Limited,A038405,25/08/2021,1414043,1160,Hire Of Operational Equipment
North West Leicestershire District Council,31UH,Housing Repairs,HRA Housing Repairs & Maintenance,HRAHRM,Emperor Scaffolding Limited,A038405,25/08/2021,1414044,600,Hire Of Operational Equipment
North West Leicestershire District Council,31UH,Housing Repairs,HRA Housing Repairs & Maintenance,HRAHRM,John Merison BMC Ltd,A001092,25/08/2021,1414045,1347.1,Contract Payments (Other) Ext
North West Leicestershire District Council,31UH,Housing Repairs,HRA Housing Repairs & Maintenance,HRAHRM,John Merison BMC Ltd,A001092,25/08/2021,1414046,1678.92,Contract Payments (Other) Ext
North West Leicestershire District Council,31UH,Housing Repairs,HRA Housing Repairs & Maintenance,HRAHRM,Severn Trent Water Limited,A001468,25/08/2021,1414047,1118.2,Water Charges (Metered)
